[Event "-chT Youth Countries 2019"]
[Site "Wuerzburg"]
[Date "2019.10.02"]
[Round "2.4"]
[White "Gutkin, Ilya"]
[Black "Haenselmann, Hendrik"]
[Result "1-0"]
[ECO "A04"]
[WhiteElo "2047"]
[BlackElo "1732"]
[Annotator "NA"]
[PlyCount "115"]
[EventDate "2019.10.02"]
[EventType "team-tourn"]
[EventRounds "7"]
[EventCountry "GER"]
[SourceTitle "playchess.com"]
[Source "ChessBase"]
[SourceQuality "1"]
[WhiteTeam "Nordrhein-Westfalen"]
[BlackTeam "Baden 1"]
[TimeControl "40/5400+30:1800+30"]

1. Nf3 {[%emt 0:00:00]} c5 {[%emt 0:00:00]} 2. b3 {[%emt 0:00:21]} Nf6 {[%emt 0:00:03]} 3. c4 {[%emt 0:00:57]} e6 {[%emt 0:00:23]} 4. Bb2 {[%emt 0:04:55]} Be7 {[%emt 0:00:37]} 5. g3 {[%emt 0:04:18]} b6 {[%emt 0:00:12]} 6. Bg2 {[%emt 0:01:23]} Bb7 {[%emt 0:00:15]} 7. O-O {[%emt 0:00:34]} d6 {[%emt 0:01:23]} 8. Nc3 {[%emt 0:07:16]} Nbd7 {[%emt 0:02:16]} 9. d4 {[%emt 0:01:04]} cxd4 {[%emt 0:00:15]} 10. Nxd4 {[%emt 0:00:51]} Bxg2 {[%emt 0:00:22]} 11. Kxg2 {[%emt 0:00:05]} Qc8 {[%emt 0:03:40]} 12. Qd2 {[%emt 0:06:09]} a6 {[%emt 0:00:48]} 13. f3 {[%emt 0:05:31]} O-O {[%emt 0:00:24]} 14. e4 {[%emt 0:01:08]} Qc7 {[%emt 0:01:10]} 15. Rac1 {[%emt 0:01:13]} Rac8 {[%emt 0:01:50]} 16. Rfd1 {[%emt 0:02:42]} Rfe8 {[%emt 0:01:23]} 17. Nc2 {[%emt 0:02:47]} Nc5 {[%emt 0:03:15]} 18. Ne3 {[%emt 0:00:55]} Qb7 {[%emt 0:06:09]} 19. Qe2 {[%emt 0:03:58]} h6 {[%emt 0:11:30]} 20. Rd2 {[%emt 0:02:23]} Rb8 {[%emt 0:13:20]} 21. Kg1 {[%emt 0:20:38]} Rec8 {[%emt 0:12:35]} 22. Ncd1 {[%emt 0:03:07]} Qc7 {[%emt 0:04:07]} 23. Nf2 {[%emt 0:01:39]} Ncd7 {[%emt 0:08:57]} 24. Nd3 {[%emt 0:04:10]} Ne5 {[%emt 0:01:25]} 25. Nxe5 {[%emt 0:02:35]} dxe5 {[%emt 0:00:34]} 26. Rcd1 {[%emt 0:02:22]} Bc5 {[%emt 0:04:47]} 27. Kg2 {[%emt 0:00:23]} h5 {[%emt 0:01:20]} 28. Nc2 {[%emt 0:04:37]} Bf8 {[%emt 0:06:41]} 29. Qe3 {[%emt 0:08:17]} Be7 {[%emt 0:01:14]} 30. Qc3 {[%emt 0:02:12]} Rd8 {[%emt 0:02:33]} 31. Qxe5 {[%emt 0:00:55]} Qxe5 {[%emt 0:00:42]} 32. Bxe5 {[%emt 0:00:25]} Rbc8 {[%emt 0:00:26]} 33. Rxd8+ {[%emt 0:00:34]} Rxd8 {[%emt 0:00:10]} 34. Rxd8+ {[%emt 0:00:10]} Bxd8 {[%emt 0:00:09]} 35. Nb4 {[%emt 0:00:37]} a5 {[%emt 0:02:03]} 36. Nc6 {[%emt 0:00:26]} Nd7 {[%emt 0:00:25]} 37. Bd6 {[%emt 0:00:51]} Bg5 {[%emt 0:01:02]} 38. f4 {[%emt 0:00:09]} Bh6 {[%emt 0:00:09]} 39. Nb8 {[%emt 0:01:30]} Nc5 {[%emt 0:00:36]} 40. Bxc5 {[%emt 0:01:05]} bxc5 {[%emt 0:00:04]} 41. Nd7 {[%emt 0:30:11]} g5 {[%emt 0:30:22]} 42. Kf3 {[%emt 0:00:30]} gxf4 {[%emt 0:00:16]} 43. gxf4 {[%emt 0:00:06]} Bf8 {[%emt 0:00:29]} 44. Nxf8 {[%emt 0:00:00]} Kxf8 {[%emt 0:00:00]} 45. Ke3 {[%emt 0:00:00]} Ke7 {[%emt 0:00:00]} 46. Kd3 {[%emt 0:00:00]} e5 {[%emt 0:00:00]} 47. f5 {[%emt 0:00:00]} h4 {[%emt 0:00:00]} 48. a3 {[%emt 0:00:00]} Kf6 {[%emt 0:00:00]} 49. b4 {[%emt 0:00:00]} axb4 {[%emt 0:00:00]} 50. axb4 {[%emt 0:00:00]} Kg5 {[%emt 0:00:00]} 51. b5 {[%emt 0:00:00]} Kg4 {[%emt 0:00:00]} 52. b6 {[%emt 0:00:00]} Kh3 {[%emt 0:00:00]} 53. b7 {[%emt 0:00:00]} Kxh2 {[%emt 0:00:00]} 54. b8=Q {[%emt 0:00:00]} f6 {[%emt 0:00:00]} 55. Ke2 {[%emt 0:00:00]} h3 {[%emt 0:00:00]} 56. Kf2 {[%emt 0:00:00]} Kh1 {[%emt 0:00:00]} 57. Qb1+ {[%emt 0:00:00]} Kh2 {[%emt 0:00:00]} 58. Qg1# {normal} 1-0

[Event "-chT Youth Countries 2019"]
[Site "Wuerzburg"]
[Date "2019.10.02"]
[Round "2.4"]
[White "Amato, Cristiano"]
[Black "Jacoby, Angelina"]
[Result "1-0"]
[ECO "B01"]
[WhiteElo "1746"]
[BlackElo "1635"]
[Annotator "NA"]
[PlyCount "57"]
[EventDate "2019.10.02"]
[EventType "team-tourn"]
[EventRounds "7"]
[EventCountry "GER"]
[SourceTitle "playchess.com"]
[Source "ChessBase"]
[SourceQuality "1"]
[WhiteTeam "Baden 2"]
[BlackTeam "SG Brandenburg / Berlin"]
[TimeControl "40/5400+30:1800+30"]

1. e4 {[%emt 0:00:00]} d5 {[%emt 0:00:00]} 2. exd5 {[%emt 0:00:00]} Qxd5 {[%emt 0:00:00]} 3. Nc3 {[%emt 0:00:02]} Qa5 {[%emt 0:00:00]} 4. Nf3 {[%emt 0:00:38]} Nf6 {[%emt 0:00:29]} 5. d4 {[%emt 0:03:24]} c6 {[%emt 0:00:08]} 6. Bd3 {[%emt 0:01:46]} Bg4 {[%emt 0:03:40]} 7. Bf4 {[%emt 0:03:01]} e6 {[%emt 0:02:12]} 8. O-O {[%emt 0:04:17]} Qb6 {[%emt 0:08:16]} 9. Qd2 {[%emt 0:11:39]} Bxf3 {[%emt 0:01:59]} 10. gxf3 {[%emt 0:00:07]} Qxd4 {[%emt 0:00:26]} 11. Be3 {[%emt 0:00:18]} Qe5 {[%emt 0:04:02]} 12. Kh1 {[%emt 0:05:23]} Bd6 {[%emt 0:04:24]} 13. f4 {[%emt 0:00:30]} Qh5 {[%emt 0:02:45]} 14. Be2 {[%emt 0:01:28]} Ng4 {[%emt 0:18:13]} 15. Bxg4 {[%emt 0:00:16]} Qxg4 {[%emt 0:00:04]} 16. f3 {[%emt 0:01:02]} Qh3 {[%emt 0:02:36]} 17. Qxd6 {[%emt 0:00:16]} Na6 {[%emt 0:01:25]} 18. Rad1 {[%emt 0:01:09]} h6 {[%emt 0:08:13]} 19. Qd7+ {[%emt 0:00:31]} Kf8 {[%emt 0:00:22]} 20. Qxb7 {[%emt 0:00:33]} Rb8 {[%emt 0:01:22]} 21. Qxa6 {[%emt 0:00:20]} g5 {[%emt 0:00:18]} 22. Bc5+ {[%emt 0:00:44]} Kg8 {[%emt 0:00:46]} 23. Qxa7 {[%emt 0:03:12]} Rc8 {[%emt 0:02:01]} 24. Qd7 {[%emt 0:00:21]} Rb8 {[%emt 0:00:55]} 25. Bd4 {[%emt 0:00:21]} Rh7 {[%emt 0:01:19]} 26. Bf6 {[%emt 0:00:33]} Rf8 {[%emt 0:00:18]} 27. Ne4 {[%emt 0:01:08]} c5 {[%emt 0:02:07]} 28. Nd6 {[%emt 0:00:31]} c4 {[%emt 0:00:46]} 29. Nc8 {[%emt 0:00:11] normal} 1-0

[Event "-chT Youth Countries 2019"]
[Site "Wuerzburg"]
[Date "2019.10.02"]
[Round "2.4"]
[White "Muller, Magnus"]
[Black "Moeller, Hannah"]
[Result "1-0"]
[ECO "A45"]
[WhiteElo "1478"]
[BlackElo "1850"]
[Annotator "NA"]
[PlyCount "43"]
[EventDate "2019.10.02"]
[EventType "team-tourn"]
[EventRounds "7"]
[EventCountry "GER"]
[SourceTitle "playchess.com"]
[Source "ChessBase"]
[SourceQuality "1"]
[WhiteTeam "Thüringen"]
[BlackTeam "Bremen/Niedersachsen"]
[TimeControl "40/5400+30:1800+30"]

1. d4 {[%emt 0:00:00]} Nf6 {[%emt 0:00:00]} 2. Bf4 {[%emt 0:00:00]} g6 {[%emt 0:00:00]} 3. Nc3 {[%emt 0:00:00]} Bg7 {[%emt 0:00:00]} 4. e4 {[%emt 0:00:00]} d6 {[%emt 0:00:01]} 5. Qd2 {[%emt 0:00:04]} h5 {[%emt 0:00:46]} 6. O-O-O {[%emt 0:00:21]} c6 {[%emt 0:00:46]} 7. f3 {[%emt 0:01:11]} b5 {[%emt 0:00:40]} 8. Qe1 {[%emt 0:06:00]} Qb6 {[%emt 0:06:41]} 9. e5 {[%emt 0:00:50]} dxe5 {[%emt 0:01:00]} 10. dxe5 {[%emt 0:00:10]} Nh7 {[%emt 0:00:41]} 11. Ne4 {[%emt 0:22:26]} O-O {[%emt 0:07:22]} 12. g4 {[%emt 0:03:53]} hxg4 {[%emt 0:02:34]} 13. h4 {[%emt 0:01:22]} Nd7 {[%emt 0:16:39]} 14. Qg3 {[%emt 0:00:44]} Nc5 {[%emt 0:05:11]} 15. Nxc5 {[%emt 0:09:21]} Qxc5 {[%emt 0:00:08]} 16. Bd3 {[%emt 0:00:16]} Rd8 {[%emt 0:02:01]} 17. fxg4 {[%emt 0:01:56]} Qb4 {[%emt 0:03:00]} 18. h5 {[%emt 0:00:32]} Bxg4 {[%emt 0:09:34]} 19. Nf3 {[%emt 0:07:33]} gxh5 {[%emt 0:04:27]} 20. Bxh7+ {[%emt 0:02:17]} Kxh7 {[%emt 0:00:18]} 21. Rxd8 {[%emt 0:00:53]} Bxf3 {[%emt 0:02:13]} 22. Rg1 {[%emt 0:00:42] normal} 1-0

[Event "-chT Youth Countries 2019"]
[Site "Wuerzburg"]
[Date "2019.10.02"]
[Round "2.5"]
[White "Riddell, Joshua S."]
[Black "Nguyen, Ha Thanh"]
[Result "1/2-1/2"]
[ECO "B38"]
[WhiteElo "2130"]
[BlackElo "1998"]
[Annotator "NA"]
[PlyCount "41"]
[EventDate "2019.10.02"]
[EventType "team-tourn"]
[EventRounds "7"]
[EventCountry "GER"]
[SourceTitle "playchess.com"]
[Source "ChessBase"]
[SourceQuality "1"]
[WhiteTeam "Bremen/Niedersachsen"]
[BlackTeam "Thueringen"]
[TimeControl "40/5400+30:1800+30"]

1. e4 {[%emt 0:00:00]} c5 {[%emt 0:00:00]} 2. Nf3 {[%emt 0:00:00]} Nc6 {[%emt 0:00:00]} 3. d4 {[%emt 0:00:06]} cxd4 {[%emt 0:00:00]} 4. Nxd4 {[%emt 0:00:08]} g6 {[%emt 0:00:00]} 5. c4 {[%emt 0:00:24]} Bg7 {[%emt 0:00:00]} 6. Be3 {[%emt 0:00:08]} Nf6 {[%emt 0:00:09]} 7. Nc3 {[%emt 0:00:08]} O-O {[%emt 0:00:19]} 8. Be2 {[%emt 0:00:08]} d6 {[%emt 0:00:23]} 9. O-O {[%emt 0:00:10]} Bd7 {[%emt 0:00:19]} 10. f3 {[%emt 0:00:07]} Nxd4 {[%emt 0:00:43]} 11. Bxd4 {[%emt 0:00:18]} a5 {[%emt 0:00:26]} 12. Nd5 {[%emt 0:04:45]} Nxd5 {[%emt 0:05:20]} 13. cxd5 {[%emt 0:00:06]} Rc8 {[%emt 0:16:06]} 14. Bxg7 {[%emt 0:02:33]} Kxg7 {[%emt 0:00:07]} 15. Qd4+ {[%emt 0:00:04]} Kg8 {[%emt 0:00:14]} 16. Rac1 {[%emt 0:00:21]} Rc7 {[%emt 0:02:31]} 17. Rc3 {[%emt 0:02:22]} Rxc3 {[%emt 0:11:39]} 18. bxc3 {[%emt 0:01:31]} Qc7 {[%emt 0:00:38]} 19. Rb1 {[%emt 0:00:15]} Rc8 {[%emt 0:01:03]} 20. c4 {[%emt 0:00:30]} Be8 {[%emt 0:10:11]} 21. Kf1 {[%emt 0:01:38] normal} 1/2-1/2

[Event "-chT Youth Countries 2019"]
[Site "Wuerzburg"]
[Date "2019.10.02"]
[Round "2.5"]
[White "Wang, Xinyuan"]
[Black "Bashylina, Luisa"]
[Result "1-0"]
[ECO "E83"]
[WhiteElo "2020"]
[BlackElo "1933"]
[Annotator "NA"]
[PlyCount "83"]
[EventDate "2019.10.02"]
[EventType "team-tourn"]
[EventRounds "7"]
[EventCountry "GER"]
[SourceTitle "playchess.com"]
[Source "ChessBase"]
[SourceQuality "1"]
[WhiteTeam "Baden 1"]
[BlackTeam "Nordrhein-Westfalen"]
[TimeControl "40/5400+30:1800+30"]

1. d4 {[%emt 0:00:00]} Nf6 {[%emt 0:00:00]} 2. c4 {[%emt 0:00:00]} g6 {[%emt 0:00:00]} 3. Nc3 {[%emt 0:00:00]} Bg7 {[%emt 0:00:00]} 4. e4 {[%emt 0:00:00]} d6 {[%emt 0:00:00]} 5. f3 {[%emt 0:00:00]} O-O {[%emt 0:00:00]} 6. Be3 {[%emt 0:00:32]} Nc6 {[%emt 0:00:04]} 7. Bd3 {[%emt 0:00:27]} e5 {[%emt 0:01:23]} 8. d5 {[%emt 0:00:11]} Nb4 {[%emt 0:05:38]} 9. Bb1 {[%emt 0:00:09]} Nh5 {[%emt 0:00:35]} 10. a3 {[%emt 0:01:15]} Na6 {[%emt 0:00:09]} 11. Nge2 {[%emt 0:00:29]} f5 {[%emt 0:00:40]} 12. exf5 {[%emt 0:00:59]} gxf5 {[%emt 0:00:18]} 13. Qd2 {[%emt 0:08:05]} Nc5 {[%emt 0:05:57]} 14. Bc2 {[%emt 0:01:45]} a5 {[%emt 0:04:16]} 15. O-O-O {[%emt 0:05:52]} Qh4 {[%emt 0:05:05]} 16. g4 {[%emt 0:05:31]} Nf4 {[%emt 0:09:27]} 17. Nxf4 {[%emt 0:04:28]} exf4 {[%emt 0:00:07]} 18. Qf2 {[%emt 0:06:29]} Qxf2 {[%emt 0:07:15]} 19. Bxf2 {[%emt 0:00:41]} Kh8 {[%emt 0:17:16]} 20. Nb5 {[%emt 0:05:15]} Na6 {[%emt 0:06:43]} 21. Rde1 {[%emt 0:02:44]} Be5 {[%emt 0:04:55]} 22. Bd4 {[%emt 0:02:17]} Bxd4 {[%emt 0:01:08]} 23. Nxd4 {[%emt 0:01:45]} fxg4 {[%emt 0:07:24]} 24. fxg4 {[%emt 0:04:15]} f3 {[%emt 0:03:43]} 25. Rhf1 {[%emt 0:09:13]} Bxg4 {[%emt 0:01:35]} 26. Re7 {[%emt 0:01:07]} h5 {[%emt 0:03:08]} 27. h3 {[%emt 0:04:54]} Bxh3 {[%emt 0:01:30]} 28. Rxf3 {[%emt 0:00:10]} Bg4 {[%emt 0:01:07]} 29. Rg3 {[%emt 0:00:52]} Rf1+ {[%emt 0:04:48]} 30. Kd2 {[%emt 0:01:06]} Rf4 {[%emt 0:03:00]} 31. Ke3 {[%emt 0:00:55]} Rf1 {[%emt 0:01:21]} 32. Rh7+ {[%emt 0:01:29]} Kg8 {[%emt 0:00:03]} 33. Rxh5 {[%emt 0:01:34]} Re8+ {[%emt 0:00:28]} 34. Ne6 {[%emt 0:01:43]} Rf3+ {[%emt 0:00:27]} 35. Rxf3 {[%emt 0:00:08]} Bxh5 {[%emt 0:00:07]} 36. Rg3+ {[%emt 0:01:25]} Kf7 {[%emt 0:01:34]} 37. Rg5 {[%emt 0:01:46]} Rh8 {[%emt 0:01:57]} 38. Nf4 {[%emt 0:01:03]} Re8+ {[%emt 0:03:33]} 39. Kf2 {[%emt 0:00:14]} Bd1 {[%emt 0:01:59]} 40. Bxd1 {[%emt 0:00:47]} Re4 {[%emt 0:00:35]} 41. Rf5+ {[%emt 0:31:39]} Ke7 {[%emt 0:30:43]} 42. Ng6+ {[%emt 0:02:18] normal Nb8} 1-0

[Event "-chT Youth Countries 2019"]
[Site "Wuerzburg"]
[Date "2019.10.02"]
[Round "2.5"]
[White "Farokhi, Keyvan"]
[Black "Reitz, Theresa"]
[Result "1-0"]
[ECO "A45"]
[WhiteElo "2018"]
[BlackElo "1935"]
[Annotator "NA"]
[PlyCount "44"]
[EventDate "2019.10.02"]
[EventType "team-tourn"]
[EventRounds "7"]
[EventCountry "GER"]
[SourceTitle "playchess.com"]
[Source "ChessBase"]
[SourceQuality "1"]
[WhiteTeam "Schleswig-Holstein"]
[BlackTeam "Rheinland-Pfalz"]
[TimeControl "40/5400+30:1800+30"]

1. d4 {[%emt 0:00:00]} Nf6 {[%emt 0:00:00]} 2. Bf4 {[%emt 0:00:00]} g6 {[%emt 0:00:00]} 3. Nc3 {[%emt 0:00:00]} d5 {[%emt 0:00:02]} 4. e3 {[%emt 0:00:00]} Bg7 {[%emt 0:00:17]} 5. h4 {[%emt 0:00:06]} c5 {[%emt 0:05:46]} 6. Nb5 {[%emt 0:01:45]} Na6 {[%emt 0:03:02]} 7. Nf3 {[%emt 0:00:32]} Bd7 {[%emt 0:13:48]} 8. a4 {[%emt 0:00:42]} O-O {[%emt 0:09:26]} 9. Bd3 {[%emt 0:01:33]} Nb4 {[%emt 0:08:29]} 10. Ne5 {[%emt 0:07:55]} Nxd3+ {[%emt 0:01:38]} 11. Qxd3 {[%emt 0:00:03]} Bf5 {[%emt 0:02:15]} 12. Qe2 {[%emt 0:00:42]} Qa5+ {[%emt 0:01:51]} 13. c3 {[%emt 0:03:36]} a6 {[%emt 0:07:17]} 14. Na3 {[%emt 0:00:29]} Ne4 {[%emt 0:03:01]} 15. g4 {[%emt 0:01:31]} Be6 {[%emt 0:02:13]} 16. f3 {[%emt 0:00:43]} Nd6 {[%emt 0:05:25]} 17. h5 {[%emt 0:00:47]} Rac8 {[%emt 0:08:30]} 18. hxg6 {[%emt 0:00:28]} fxg6 {[%emt 0:01:01]} 19. Qh2 {[%emt 0:00:42]} h5 {[%emt 0:02:39]} 20. Nxg6 {[%emt 0:01:41]} cxd4 {[%emt 0:01:08]} 21. Qxh5 {[%emt 0:01:51]} Rxf4 {[%emt 0:02:30]} 22. Nxf4 {[%emt 0:01:55]} Bf8 {normal} 1-0

[Event "-chT Youth Countries 2019"]
[Site "Wuerzburg"]
[Date "2019.10.02"]
[Round "2.5"]
[White "Hetzner, Hannes"]
[Black "Moenster, Madita"]
[Result "0-1"]
[ECO "B94"]
[WhiteElo "1996"]
[BlackElo "1916"]
[Annotator "NA"]
[PlyCount "66"]
[EventDate "2019.10.02"]
[EventType "team-tourn"]
[EventRounds "7"]
[EventCountry "GER"]
[SourceTitle "playchess.com"]
[Source "ChessBase"]
[SourceQuality "1"]
[WhiteTeam "Bayern 1"]
[BlackTeam "Niedersachsen"]
[TimeControl "40/5400+30:1800+30"]

1. e4 {[%emt 0:00:00]} c5 {[%emt 0:00:00]} 2. Nf3 {[%emt 0:00:00]} d6 {[%emt 0:00:00]} 3. d4 {[%emt 0:00:00]} cxd4 {[%emt 0:00:00]} 4. Nxd4 {[%emt 0:00:00]} Nf6 {[%emt 0:00:00]} 5. Nc3 {[%emt 0:00:01]} a6 {[%emt 0:00:01]} 6. Bg5 {[%emt 0:00:10]} Nbd7 {[%emt 0:00:10]} 7. Qe2 {[%emt 0:00:29]} h6 {[%emt 0:00:13]} 8. Bh4 {[%emt 0:00:49]} g6 {[%emt 0:00:13]} 9. f4 {[%emt 0:01:08]} e5 {[%emt 0:00:17]} 10. fxe5 {[%emt 0:00:38]} dxe5 {[%emt 0:00:08]} 11. O-O-O {[%emt 0:00:40]} Qc7 {[%emt 0:00:21]} 12. Nb3 {[%emt 0:00:19]} b5 {[%emt 0:01:41]} 13. Nd5 {[%emt 0:00:25]} Nxd5 {[%emt 0:01:01]} 14. exd5 {[%emt 0:00:37]} Bd6 {[%emt 0:02:04]} 15. Qd2 {[%emt 0:04:35]} Bb7 {[%emt 0:13:46]} 16. Kb1 {[%emt 0:10:12]} Rc8 {[%emt 0:01:50]} 17. Bf2 {[%emt 0:14:11]} Nf6 {[%emt 0:06:29]} 18. Bd3 {[%emt 0:05:01]} Nxd5 {[%emt 0:22:08]} 19. c3 {[%emt 0:13:38]} Be7 {[%emt 0:04:32]} 20. Qc2 {[%emt 0:05:28]} Nf4 {[%emt 0:04:23]} 21. Bg3 {[%emt 0:14:17]} Nxd3 {[%emt 0:03:41]} 22. Qxd3 {[%emt 0:00:24]} Bf6 {[%emt 0:05:18]} 23. Rhe1 {[%emt 0:06:18]} O-O {[%emt 0:08:01]} 24. Qe3 {[%emt 0:04:51]} Rfe8 {[%emt 0:04:01]} 25. Qxh6 {[%emt 0:05:41]} b4 {[%emt 0:00:52]} 26. Rc1 {[%emt 0:04:04]} Qe7 {[%emt 0:01:28]} 27. Rc2 {[%emt 0:02:07]} bxc3 {[%emt 0:01:57]} 28. bxc3 {[%emt 0:00:35]} Rc4 {[%emt 0:05:11]} 29. Na5 {[%emt 0:05:31]} Bg5 {[%emt 0:03:22]} 30. Qh3 {[%emt 0:01:28]} Bc8 {[%emt 0:02:34]} 31. Rxe5 {[%emt 0:00:47]} Qd8 {[%emt 0:07:36]} 32. Nxc4 {[%emt 0:00:47]} Bxh3 {[%emt 0:00:19]} 33. gxh3 {[%emt 0:00:38]} Qd1+ {[%emt 0:00:47] normal} 0-1

[Event "-chT Youth Countries 2019"]
[Site "Wuerzburg"]
[Date "2019.10.02"]
[Round "2.5"]
[White "Kluehs, Gustaf"]
[Black "Arnhold, Steffi"]
[Result "0-1"]
[ECO "E56"]
[WhiteElo "1902"]
[BlackElo "2042"]
[Annotator "NA"]
[PlyCount "72"]
[EventDate "2019.10.02"]
[EventType "team-tourn"]
[EventRounds "7"]
[EventCountry "GER"]
[SourceTitle "playchess.com"]
[Source "ChessBase"]
[SourceQuality "1"]
[WhiteTeam "Berlin"]
[BlackTeam "Sachsen"]
[TimeControl "40/5400+30:1800+30"]

1. d4 {[%emt 0:00:00]} Nf6 {[%emt 0:00:00]} 2. Nf3 {[%emt 0:00:00]} d5 {[%emt 0:00:00]} 3. c4 {[%emt 0:00:00]} e6 {[%emt 0:01:15]} 4. Nc3 {[%emt 0:00:57]} Bb4 {[%emt 0:02:00]} 5. e3 {[%emt 0:02:33]} O-O {[%emt 0:01:47]} 6. Bd3 {[%emt 0:00:38]} c5 {[%emt 0:07:15]} 7. O-O {[%emt 0:04:39]} Nc6 {[%emt 0:02:51]} 8. dxc5 {[%emt 0:01:42]} Bxc5 {[%emt 0:05:48]} 9. a3 {[%emt 0:00:41]} a5 {[%emt 0:01:38]} 10. cxd5 {[%emt 0:01:01]} exd5 {[%emt 0:01:33]} 11. Bd2 {[%emt 0:01:31]} Re8 {[%emt 0:04:25]} 12. Nb5 {[%emt 0:01:24]} Bg4 {[%emt 0:02:53]} 13. Bc3 {[%emt 0:02:27]} Rc8 {[%emt 0:13:47]} 14. Rc1 {[%emt 0:02:14]} Bb6 {[%emt 0:10:39]} 15. Be2 {[%emt 0:00:51]} Ne4 {[%emt 0:02:35]} 16. Bd4 {[%emt 0:04:32]} Bxf3 {[%emt 0:15:31]} 17. Bxf3 {[%emt 0:05:28]} Nxd4 {[%emt 0:02:12]} 18. Nxd4 {[%emt 0:00:07]} Rxc1 {[%emt 0:00:09]} 19. Qxc1 {[%emt 0:00:07]} Bxd4 {[%emt 0:00:17]} 20. exd4 {[%emt 0:00:07]} g6 {[%emt 0:03:08]} 21. Qf4 {[%emt 0:01:03]} Qb6 {[%emt 0:01:20]} 22. Bxe4 {[%emt 0:01:47]} Rxe4 {[%emt 0:00:21]} 23. Qb8+ {[%emt 0:01:36]} Kg7 {[%emt 0:00:09]} 24. h4 {[%emt 0:03:46]} h5 {[%emt 0:03:15]} 25. Rc1 {[%emt 0:01:19]} Qxb2 {[%emt 0:04:16]} 26. Rc8 {[%emt 0:00:51]} Qb1+ {[%emt 0:01:10]} 27. Kh2 {[%emt 0:00:05]} Rxh4+ {[%emt 0:00:06]} 28. Kg3 {[%emt 0:00:02]} Qe4 {[%emt 0:02:55]} 29. Rg8+ {[%emt 0:01:16]} Kh6 {[%emt 0:00:48]} 30. Rh8+ {[%emt 0:00:17]} Kg5 {[%emt 0:00:17]} 31. f4+ {[%emt 0:03:13]} Qxf4+ {[%emt 0:00:17]} 32. Qxf4+ {[%emt 0:00:09]} Rxf4 {[%emt 0:00:05]} 33. Rb8 {[%emt 0:00:08]} Rxd4 {[%emt 0:00:27]} 34. Rxb7 {[%emt 0:00:30]} Rd3+ {[%emt 0:00:31]} 35. Kh2 {[%emt 0:00:05]} Rxa3 {[%emt 0:00:44]} 36. Rb5 {[%emt 0:00:06]} Rd3 {[%emt 0:01:12] normal} 0-1